bitfinex/quotes_ETHUSD_20260209
["timestamp","ask_amount","ask_price","bid_price","bid_amount"]
[1770669865734,1.01075372,2131.6,2130.9,1.17321319]
[1770669865933,1.01075372,2131.5,2130.9,1.17321319]
[1770669866135,0.98350942,2131.7,2130.9,1.17321319]
[1770669866333,1.01065794,2131.6,2130.9,1.17321319]
[1770669866533,1.01065794,2131.5,2130.9,1.17321319]
[1770669866733,0.98350942,2131.7,2130.9,1.17321319]
[1770669866931,1.01102607,2131.6,2130.9,1.17321319]
[1770669867244,1.01102607,2131.5,2130.9,1.17321319]
[1770669867438,0.98350942,2131.7,2130.9,1.17321319]
[1770669867639,1.01135417,2131.6,2130.9,1.17321319]
[1770669867833,1.01135417,2131.5,2130.9,1.17321319]
[1770669868034,0.98350942,2131.7,2130.9,1.17321319]
[1770669868243,1.01135429,2131.6,2130.9,1.17321319]
[1770669868554,1.01135429,2131.5,2130.9,1.17321319]
[1770669868757,0.98350942,2131.7,2130.9,1.17321319]
[1770669868963,1.01180885,2131.6,2130.9,1.17321319]
[1770669869142,1.01180885,2131.5,2130.9,1.17321319]
[1770669869343,1.01248567,2131.4,2130.9,1.17321319]
[1770669869544,0.98350942,2131.7,2130.9,1.17321319]
[1770669869845,1.01244464,2131.6,2130.9,1.17321319]
[1770669870052,1.01244464,2131.5,2130.9,1.17321319]
[1770669870374,1.99584265,2131.4,2130.9,1.17321319]
[1770669870553,1.01233323,2131.3,2130.9,1.17321319]
[1770669870860,0.98350942,2131.4,2130.9,1.17321319]
[1770669871042,1.01240288,2131.3,2130.9,1.17321319]
[1770669871242,0.98350942,2131.4,2130.9,1.17321319]
[1770669871464,1.01239239,2131.3,2130.8,4.45222248]
[1770669871763,0.98350942,2131.3,2130.8,4.45222248]
[1770669872432,1.01236321,2131.2,2130.8,4.45222248]
[1770669872629,0.98350942,2131.3,2130.8,4.45222248]
[1770669872858,1.01236345,2131.2,2130.8,4.45222248]
[1770669873161,0.98350942,2131.3,2130.8,4.45222248]
[1770669873360,1.01238871,2131.2,2130.8,4.45222248]
[1770669873556,0.98350942,2131.3,2130.8,4.45222248]
[1770669873763,1.01232033,2131.2,2130.8,4.45222248]
[1770669873945,0.98350942,2131.3,2130.8,4.45222248]
[1770669874141,0.98350942,2131.8,2130.9,0.94446352]
[1770669875141,1.0398263,2131.8,2130.8,4.45222248]
[1770669875549,1.0398263,2131.8,2130.9,0.0011]
[1770669875751,0.0012,2131.0,2130.9,0.0011]
[1770669875981,0.98350942,2131.6,2130.9,0.0011]
[1770669881871,2.15634917,2131.6,2130.9,0.0011]
[1770669882077,0.98350942,2131.5,2130.9,0.0011]
[1770669883084,2.15639768,2131.5,2130.9,0.0011]
[1770669883459,0.98350942,2131.5,2130.9,0.0011]
[1770669884284,2.15631881,2131.7,2130.9,0.94556352]
[1770669884883,2.15631881,2131.7,2131.0,1.17315814]
[1770669885266,0.98350942,2131.6,2131.0,1.17315814]
[1770669885988,0.98350942,2132.1,2131.1,0.94446352]
[1770669886187,0.98350942,2131.9,2131.1,0.94446352]
[1770669886494,0.98350942,2131.7,2131.0,1.17315814]
[1770669886671,1.99580712,2131.6,2131.0,1.17315814]
[1770669886995,0.98350942,2131.4,2130.9,1.17431319]
[1770669887159,1.0124126,2131.3,2130.9,1.17431319]
[1770669887364,0.98350942,2131.4,2130.9,1.17431319]
[1770669887567,1.01241231,2131.3,2130.9,1.17431319]
[1770669887766,0.98350942,2131.4,2130.9,1.17431319]
[1770669887970,1.01241255,2131.3,2130.9,1.17431319]
[1770669888274,0.98350942,2131.4,2131.1,0.0011]
[1770669888470,1.01250831,2131.3,2131.1,0.0011]
[1770669888694,0.98350942,2131.5,2131.1,0.0011]
[1770669888895,1.01250759,2131.4,2131.1,0.0011]
[1770669889196,1.01250759,2131.3,2131.1,0.0011]
[1770669889404,2.1564038,2131.5,2131.1,0.0011]
[1770669889702,1.98846336,2131.4,2131.1,0.0011]
[1770669889873,1.0126167,2131.3,2131.1,0.0011]
[1770669890083,0.97584666,2131.4,2131.1,0.0011]
[1770669890289,1.0127462,2131.3,2131.1,0.0011]
[1770669890597,0.97584666,2131.4,2131.1,0.0011]
[1770669890798,1.01274636,2131.3,2131.1,0.0011]
[1770669890981,0.97584666,2131.4,2131.1,0.0011]
[1770669891185,1.0127462,2131.3,2131.1,0.0011]
[1770669891379,0.97584666,2131.4,2131.1,0.0011]
[1770669891706,1.01296559,2131.3,2131.1,0.0011]
[1770669891882,0.97584666,2131.4,2131.1,0.0011]
[1770669892088,1.01296566,2131.3,2131.1,0.0011]
[1770669892286,0.97584666,2131.1,2130.7,0.0011]
[1770669892594,1.98903668,2131.0,2130.7,0.0011]
[1770669892804,1.01319002,2130.9,2130.7,0.0011]
[1770669893000,0.97584666,2131.0,2130.7,0.0011]
[1770669893172,1.01334811,2130.9,2130.7,0.0011]
[1770669893372,0.97584666,2131.0,2130.7,0.0011]
[1770669893584,1.01326933,2130.9,2130.7,0.0011]
[1770669893790,0.97584666,2131.2,2130.7,0.0011]
[1770669893978,1.01325159,2131.1,2130.7,0.0011]
[1770669894186,1.01325159,2131.0,2130.7,0.0011]
[1770669894369,0.97584666,2131.2,2130.7,0.0011]
[1770669894576,1.01319834,2131.1,2130.7,0.0011]
[1770669894895,1.01319834,2131.0,2130.7,0.0011]
[1770669895089,2.14878851,2131.4,2130.7,0.0011]
[1770669895284,0.97584666,2131.2,2130.7,0.0011]
[1770669895465,1.01301629,2131.3,2130.7,0.0011]
[1770669895466,0.97584666,2131.0,2130.7,0.0011]
[1770669896989,1.01229064,2130.9,2130.7,0.0011]
[1770669897195,0.97584666,2131.0,2130.7,0.0011]
[1770669897594,0.97584666,2130.8,2130.7,0.0011]
[1770669899827,4.69218039,2131.3,2130.7,0.0011]
[1770669899828,0.97584666,2131.3,2130.7,0.0011]
[1770669899982,1.01030871,2131.2,2130.7,0.0011]
[1770669900323,1.01030871,2131.1,2130.7,0.96167391]
[1770669900530,0.97584666,2131.7,2130.7,0.96167391]
[1770669900742,1.01171993,2131.6,2130.7,0.96167391]
[1770669901027,1.01171993,2131.5,2130.9,0.0011]
[1770669901317,0.0012,2131.1,2130.9,0.0011]
[1770669901679,0.97584666,2131.6,2130.9,0.0011]
[1770669901908,1.01182815,2131.5,2130.9,0.0011]
[1770669902219,1.01182815,2131.4,2130.9,0.0011]
[1770669902402,2.14867709,2131.6,2130.9,0.0011]
[1770669902607,1.01187986,2131.5,2130.9,0.0011]
[1770669902806,1.01187986,2131.4,2130.9,0.0011]
[1770669903123,0.97584666,2131.2,2130.9,0.0011]
[1770669903418,0.97584666,2131.5,2130.9,0.0011]
[1770669903627,1.17281006,2131.7,2130.9,0.0011]
[1770669903628,1.01172231,2131.4,2130.9,0.0011]
[1770669903833,1.01174789,2131.3,2130.9,0.0011]
[1770669904035,0.97584666,2131.4,2130.9,0.0011]
[1770669904212,1.01183498,2131.3,2130.9,0.0011]
[1770669904412,0.97584666,2131.4,2130.9,0.0011]
[1770669904599,1.01206596,2131.3,2130.9,0.0011]
[1770669904798,0.97584666,2131.4,2130.9,0.0011]
[1770669905107,1.01203138,2131.3,2130.9,0.0011]
[1770669905308,2.14871142,2131.6,2130.9,0.0011]
[1770669905511,1.01202352,2131.5,2130.9,0.0011]
[1770669905707,1.01202352,2131.4,2130.9,0.0011]
[1770669906007,1.01201122,2131.3,2130.9,0.0011]
[1770669906201,0.97584666,2131.6,2130.9,0.0011]
[1770669906429,1.01200678,2131.5,2130.9,0.0011]
[1770669906627,1.01200678,2131.4,2130.9,0.0011]
[1770669906812,0.97584666,2131.6,2130.9,0.0011]
[1770669907127,1.01199668,2131.5,2130.9,0.96167391]
[1770669907330,2.14854748,2131.9,2131.0,4.23957391]
[1770669907627,1.0119143,2131.8,2131.0,4.23957391]
[1770669907802,1.0119143,2131.7,2131.0,4.23957391]
[1770669908000,1.0119143,2131.6,2131.1,1.17310309]
[1770669908200,1.0119143,2131.5,2131.1,1.17310309]
[1770669908402,1.17277639,2131.7,2131.1,1.17310309]
[1770669908597,1.0118918,2131.6,2131.1,1.17310309]
[1770669908801,1.0118918,2131.5,2131.1,1.17310309]
[1770669909011,2.14862305,2131.7,2131.1,1.17310309]
[1770669909229,1.01189138,2131.6,2131.1,1.17310309]
[1770669909423,1.17265363,2132.0,2131.2,0.96057391]
[1770669909609,1.01174116,2131.9,2131.2,0.96057391]
[1770669909931,1.01174116,2131.8,2131.2,0.96057391]
[1770669910138,0.97584666,2131.0,2130.7,0.0011]
[1770669910297,1.01174116,2130.9,2130.7,0.0011]
[1770669910501,1.01174116,2130.8,2130.7,0.0011]
[1770669910928,1.98758782,2130.8,2130.7,0.0011]
[1770669911137,1.98758782,2130.8,2130.6,0.0011]
[1770669911311,1.98758782,2130.7,2130.5,0.0011]
[1770669911506,0.97584666,2130.5,2130.1,0.0011]
[1770669911704,1.01174116,2130.4,2130.1,0.0011]
[1770669911947,0.97584666,2130.7,2130.1,0.0011]
[1770669912099,2.18495313,2130.6,2130.1,0.0011]
[1770669912434,2.14907114,2130.9,2130.1,3.2801]
[1770669912728,1.01100895,2130.8,2130.1,3.2801]
[1770669912934,1.01100895,2130.7,2130.1,3.2801]
[1770669913134,2.14907114,2130.9,2130.1,3.2801]
[1770669913340,1.01092043,2130.8,2130.1,3.2801]
[1770669913641,2.14907114,2130.9,2130.1,3.2801]
[1770669913642,1.01092043,2130.7,2130.1,3.2801]
[1770669913849,0.97584666,2130.9,2130.1,3.2801]
[1770669914055,1.0107522,2130.8,2130.1,3.2801]
[1770669914266,1.0107522,2130.7,2130.1,4.45371615]
[1770669914448,1.98659886,2130.6,2130.1,3.2801]
[1770669914647,0.97584666,2130.6,2130.1,3.2801]
[1770669915317,0.97584666,2130.6,2130.1,0.0011]
[1770669915521,0.97584666,2130.5,2130.1,1.174747]
[1770669915725,2.20546807,2130.8,2130.1,1.174747]
[1770669916029,1.98611027,2130.7,2130.1,0.0011]
[1770669916236,3.15950266,2130.6,2130.1,0.0011]
[1770669916431,2.14923905,2130.6,2130.1,0.0011]
[1770669916638,0.97584666,2130.6,2130.1,0.0011]
[1770669918324,4.69296368,2130.9,2130.1,0.0011]
[1770669918325,2.14907799,2130.9,2130.1,0.0011]
[1770669918524,1.00979116,2130.8,2130.1,0.0011]
[1770669918747,1.00979116,2130.7,2130.1,0.0011]
[1770669918945,2.14907799,2130.9,2130.1,0.0011]
[1770669919157,1.00978722,2130.8,2130.1,0.0011]
[1770669919369,1.00978722,2130.7,2130.1,0.0011]
[1770669919584,2.14907799,2130.9,2130.1,0.0011]
[1770669919881,1.93069668,2130.8,2130.1,0.0011]
[1770669920069,1.00975601,2130.7,2130.1,0.0011]
[1770669920272,0.92094067,2130.8,2130.1,0.0011]
[1770669920458,1.00975198,2130.7,2130.1,0.0011]
[1770669920782,2.09424902,2130.8,2130.1,0.0011]
[1770669920985,1.00975161,2130.7,2130.1,0.0011]
[1770669921200,2.09424902,2130.8,2130.1,0.0011]
[1770669921484,1.00977313,2130.7,2130.1,0.0011]
[1770669921683,2.09424902,2130.8,2130.1,0.0011]
[1770669921866,1.00978042,2130.7,2130.1,0.0011]
[1770669922062,0.92094067,2130.7,2130.1,0.0011]
[1770669922386,0.92094067,2130.6,2130.1,0.0011]
[1770669922782,2.09425235,2130.8,2130.1,0.0011]
[1770669923094,0.92094067,2130.8,2130.1,0.0011]
[1770669925391,0.92094067,2130.8,2130.3,0.0011]
[1770669925392,2.09421338,2130.8,2130.3,0.0011]
[1770669925603,0.0012,2130.6,2130.3,0.0011]
[1770669929571,0.0012,2130.6,2130.3,1.17464363]
[1770669930096,0.0012,2130.6,2130.3,0.0011]
[1770669930097,0.92214067,2130.6,2130.3,0.0011]
[1770669930677,0.0012,2130.6,2130.3,0.0011]
[1770669931985,0.92094067,2131.1,2130.3,3.2811]
[1770669933012,0.05631688,2130.9,2130.3,3.2811]
[1770669933207,0.97725755,2130.9,2130.3,3.2811]
[1770669933413,0.97725755,2130.9,2130.3,0.0011]
[1770669933580,2.09420892,2130.8,2130.3,0.0011]
[1770669934300,1.98758594,2130.7,2130.3,0.0011]
[1770669934608,1.01032839,2130.6,2130.3,0.0011]
[1770669935309,0.97725755,2130.7,2130.3,0.0011]
[1770669935511,1.01060877,2130.6,2130.3,0.0011]
[1770669935684,0.97725755,2130.7,2130.3,0.0011]
[1770669935886,2.18402457,2130.6,2130.3,0.0011]
[1770669936096,1.17341619,2130.6,2130.3,0.0011]
[1770669936300,1.01060893,2130.5,2130.3,0.0011]
[1770669936498,1.17341619,2130.6,2130.3,0.0011]
[1770669936715,1.01095543,2130.5,2130.3,0.0011]
[1770669936919,0.97725755,2130.5,2130.3,0.0011]
[1770669937087,0.92094067,2130.3,2130.1,0.0011]
[1770669937282,1.93196282,2130.2,2130.1,0.0011]
[1770669937488,1.93196282,2130.2,2129.7,0.001]
[1770669937489,0.92094067,2130.1,2129.7,0.001]
[1770669937812,1.01102215,2130.2,2129.7,0.001]
[1770669937813,0.92094067,2129.9,2129.7,0.001]
[1770669938001,2.18484128,2129.8,2129.7,0.001]
[1770669938206,2.24115816,2129.8,2129.7,0.001]
[1770669939717,2.18484128,2129.8,2129.7,0.001]
[1770669940315,3.16209883,2129.8,2129.7,0.001]
[1770669940814,1.9882797,2129.8,2129.7,0.001]
[1770669941022,1.01102215,2129.8,2129.7,0.001]
[1770669942119,0.51973772,2129.8,2129.7,0.001]
[1770669942499,1.69355685,2129.8,2129.7,0.001]
[1770669944238,0.51973772,2129.8,2129.7,0.001]
[1770669944531,1.69355685,2129.8,2129.7,0.001]
[1770669944724,0.51973772,2129.8,2129.7,0.001]
[1770669945345,0.51973772,2129.8,2129.2,0.0011]
[1770669945641,0.92094067,2128.9,2128.6,0.0087]
[1770669945805,0.92094067,2128.9,2128.2,1.17578915]
[1770669946007,0.92094067,2129.2,2128.3,0.9270812]
[1770669946330,0.92094067,2129.2,2128.4,1.17459124]
[1770669946506,2.09501359,2129.4,2128.5,0.05631688]
[1770669946707,2.09501359,2129.4,2128.4,1.17459124]
[1770669947931,1.17402173,2129.5,2128.5,0.98339808]
[1770669948136,1.17402173,2129.5,2128.5,0.9270812]
[1770669948441,0.92094067,2129.7,2128.6,2.10156207]
[1770669948730,2.09482449,2129.7,2128.6,2.10156207]
[1770669949032,0.92094067,2129.6,2128.6,2.10156207]
[1770669949408,0.92094067,2129.6,2128.7,0.9270812]
[1770669950629,1.1739845,2129.5,2128.8,1.17437053]
[1770669951211,2.13826544,2129.5,2128.7,1.17438253]
[1770669951634,2.13826544,2129.5,2128.6,1.17555146]
[1770669951802,0.96428094,2129.4,2128.6,1.17555146]
[1770669952127,0.96428094,2129.4,2128.7,1.1744208]
[1770669953108,4.69582425,2129.6,2128.6,5.60806]
[1770669953420,1.17376402,2129.9,2128.7,0.90903798]
[1770669954112,1.00633809,2129.8,2128.7,0.90903798]
[1770669954314,1.17376402,2129.9,2128.7,0.90903798]
[1770669954515,1.00643131,2129.8,2128.7,0.90903798]
[1770669954712,1.17370804,2130.1,2128.9,0.90903798]
[1770669954919,1.00632705,2130.0,2129.1,0.90903798]
[1770669955116,1.17370804,2130.1,2129.2,1.17414991]
[1770669955317,1.00635219,2130.0,2129.2,1.17414991]
[1770669955610,1.17370804,2130.1,2129.2,1.17414991]
[1770669956220,1.06668094,2129.6,2128.6,0.0011]
[1770669956419,0.96428094,2129.0,2128.4,0.0011]
[1770669956618,0.05631688,2128.6,2127.6,1.175004]
[1770669956845,0.05631688,2128.6,2127.5,4.70132276]
[1770669956846,0.96428094,2128.6,2127.7,1.17492795]
[1770669957027,1.17453605,2128.5,2127.5,0.91013798]
[1770669958842,0.96428094,2128.9,2127.7,0.90903798]
[1770669959041,5.70284359,2128.8,2127.8,1.17592245]
[1770669959232,1.00525853,2128.7,2127.8,1.17592245]
[1770669959433,4.69758506,2128.8,2127.8,1.17592245]
[1770669959434,5.661866,2128.8,2127.8,1.17592245]
[1770669959614,1.00517987,2128.7,2127.8,1.17592245]
[1770669959822,5.661866,2128.8,2127.8,1.17592245]
[1770669960133,1.00557311,2128.7,2127.8,1.17592245]
[1770669960332,5.661866,2128.8,2127.8,1.17592245]
[1770669960552,1.97013622,2128.7,2127.8,0.001]
[1770669960721,4.75390194,2128.8,2127.8,0.001]
[1770669960722,0.96428094,2128.5,2127.8,0.001]
[1770669961114,1.17459124,2128.4,2127.8,0.001]
[1770669961933,1.17439928,2128.8,2127.8,0.91003798]
[1770669962496,1.00600804,2128.7,2127.8,0.91003798]
[1770669962622,2.13868022,2128.8,2128.0,0.0011]
[1770669962814,0.96428094,2128.6,2128.0,0.0011]
[1770669963053,1.17453605,2128.5,2128.0,0.0011]
[1770669963763,1.17428667,2129.0,2128.0,0.91013798]
[1770669964535,5.42052816,2129.1,2128.0,0.91013798]
[1770669964851,3.282,2129.1,2128.0,0.91013798]
[1770669965052,3.282,2129.1,2128.1,2.0837948]
[1770669965239,4.45622949,2129.1,2128.1,1.17475682]
[1770669965422,3.282,2129.1,2128.2,0.90903798]
[1770669966021,0.05631688,2128.6,2128.0,0.0011]
[1770669966323,1.02059782,2128.4,2127.8,0.001]
[1770669966527,4.29040967,2128.5,2127.8,0.001]
[1770669966528,1.97169061,2128.3,2127.8,0.001]
[1770669966716,0.96428094,2128.3,2127.8,0.001]
[1770669967137,2.18272192,2128.2,2127.8,0.001]
[1770669967372,1.17470162,2128.2,2127.8,0.001]
[1770669968226,1.17470162,2128.2,2127.5,0.0011]
[1770669968227,0.96428094,2128.1,2127.5,0.0011]
[1770669968549,0.96428094,2127.8,2127.3,0.001]
[1770669968849,0.96428094,2127.6,2127.3,0.001]
[1770669969054,2.18305953,2127.5,2127.3,0.001]
[1770669969249,1.17511501,2127.5,2127.3,0.001]
[1770669970261,1.17505922,2127.6,2127.3,0.001]
[1770669970849,1.17492339,2127.8,2127.3,0.001]
[1770669971036,3.283,2127.7,2127.3,0.001]
[1770669971236,4.45801831,2127.7,2127.3,0.001]
[1770669973359,0.96428094,2127.5,2126.9,0.0011]
[1770669973552,0.96428094,2127.3,2126.9,0.0011]
[1770669973860,5.25386481,2127.2,2126.9,0.0011]
[1770669974057,4.24828094,2127.2,2126.9,0.0011]
[1770669974654,0.96428094,2127.5,2126.9,0.0011]
[1770669974858,3.284,2127.1,2126.9,0.0011]
[1770669975233,1.17536436,2127.0,2126.9,0.0011]
[1770669975860,1.17536436,2127.0,2126.7,0.001]
[1770669975861,0.96428094,2126.9,2126.7,0.001]
[1770669976036,0.96428094,2126.9,2126.0,1.17687495]
[1770669977037,1.17535205,2127.1,2126.2,0.90903798]
[1770669977240,1.17514336,2127.4,2126.3,2.08478928]
[1770669977558,3.284,2127.3,2126.3,2.08478928]
[1770669977741,1.17492245,2127.8,2126.5,0.90903798]
[1770669977939,3.284,2127.7,2126.5,0.90903798]
[1770669978634,3.284,2127.7,2126.7,0.90903798]
[1770669979538,4.45898799,2127.7,2126.8,1.17547489]
[1770669979737,3.284,2127.7,2126.8,1.17547489]
[1770669980035,4.45897891,2127.7,2126.8,1.17547489]
[1770669980239,3.284,2127.7,2126.8,1.17547489]
[1770669980438,4.45897818,2127.7,2126.8,1.17547489]
[1770669980769,0.96628094,2128.2,2126.9,0.92327179]
[1770669981078,0.002,2128.2,2127.1,0.92327179]
[1770669981435,0.002,2128.2,2127.3,0.92327179]
[1770669982969,0.002,2128.4,2127.5,0.92327179]
[1770669983544,0.002,2128.4,2127.6,2.09830469]
[1770669983747,0.002,2128.4,2127.6,1.1750329]
[1770669983952,0.002,2128.4,2127.7,0.92327179]
[1770669985047,3.285,2128.9,2127.7,0.92327179]
[1770669985048,4.45931815,2128.9,2127.7,0.92327179]
[1770669985548,4.45931815,2128.9,2127.8,1.17492245]
[1770669985874,5.40523455,2128.9,2127.8,1.17492245]
[1770669986346,0.9459164,2128.7,2127.7,1.17497102]
[1770669986546,1.95232801,2128.6,2127.7,1.17497102]
[1770669986855,0.9459164,2128.6,2127.7,1.17497102]
[1770669987466,0.002,2128.7,2127.8,0.92327179]
[1770669987674,0.002,2128.7,2127.9,1.17486724]
[1770669989763,0.002,2128.7,2127.6,1.1750329]
[1770669990058,0.9479164,2128.7,2127.6,1.1750329]
[1770669990650,1.00643572,2128.6,2127.5,1.17504432]
[1770669990956,0.9459164,2128.4,2127.5,1.17504432]
[1770669991363,0.9479164,2128.7,2127.5,2.09831611]
[1770669991664,1.00648384,2128.6,2127.5,2.09831611]
[1770669991868,1.17448087,2128.6,2127.5,2.09831611]
[1770669992579,1.00656071,2128.5,2127.5,1.17504432]
[1770669992786,2.12039727,2128.6,2127.5,1.17504432]
[1770669992981,1.00654684,2128.5,2127.5,1.17504432]
[1770669993174,2.12039727,2128.6,2127.5,1.17504432]
[1770669993355,1.00654599,2128.5,2127.5,1.17504432]
[1770669993556,1.17646918,2128.7,2127.6,0.92327179]
[1770669993865,3.284,2128.6,2127.6,0.92327179]
[1770669994581,3.284,2128.6,2127.7,1.17497767]
[1770669994772,3.284,2128.6,2127.7,2.09824946]
[1770669995782,0.002,2128.7,2127.8,0.92327179]
[1770669996583,0.002,2128.7,2127.9,1.17486724]
[1770669996796,0.9479164,2128.7,2127.9,1.17486724]
[1770669996955,0.002,2128.7,2127.9,1.17486724]
[1770669998800,0.002,2128.7,2127.7,4.69946896]
[1770669998801,1.1764257,2128.7,2127.7,4.69946896]
[1770669999091,1.1764257,2128.7,2127.6,4.69946896]
[1770669999973,1.1764257,2128.7,2128.0,0.0011]
[1770670000194,0.0012,2128.5,2128.0,0.0011]
[1770670012326,0.0012,2128.5,2128.0,0.9324629]
[1770670012500,0.002,2128.7,2128.0,0.9324629]
[1770670012826,0.002,2128.9,2128.1,0.9313629]
[1770670013125,0.002,2128.9,2128.2,0.9313629]
[1770670014393,0.002,2128.9,2128.3,1.17464643]
[1770670014917,0.0012,2129.3,2128.3,1.23096331]
[1770670015145,0.0012,2129.3,2128.5,0.9313629]
[1770670016128,0.002,2129.8,2128.8,0.9313629]
[1770670016509,0.002,2129.8,2129.0,0.9313629]
[1770670017728,0.002,2129.8,2128.9,1.17431537]
[1770670017932,0.99195446,2129.8,2128.8,1.17436545]
[1770670018311,0.002,2129.8,2128.9,0.9313629]
[1770670018506,0.002,2129.8,2129.0,1.17426021]
[1770670019236,0.002,2129.8,2129.0,2.10562311]
[1770670019624,0.002,2129.8,2129.1,0.9313629]
[1770670020436,0.0012,2130.3,2129.2,2.10551281]
[1770670020641,0.0012,2130.3,2129.2,1.17414991]
[1770670020642,0.98995446,2130.2,2129.2,1.17414991]
[1770670020827,0.0012,2130.3,2129.3,0.9313629]
[1770670022738,0.99115446,2130.3,2129.4,1.17403963]
[1770670023141,0.0012,2130.3,2129.4,2.10540253]
[1770670024008,0.0012,2130.1,2129.4,1.17403963]
[1770670024846,0.0012,2130.1,2129.3,4.69615854]
[1770670025207,0.99115446,2130.1,2129.3,4.69615854]
[1770670027116,0.99115446,2130.1,2129.1,4.69654996]
[1770670027524,0.98995446,2130.0,2129.1,4.69654996]
[1770670029053,0.98995446,2129.9,2129.0,1.17420506]
[1770670029749,0.0012,2130.1,2129.0,1.17420506]
[1770670030050,0.0012,2130.3,2129.7,0.9313629]
[1770670030339,0.0012,2130.3,2129.7,4.2123629]
[1770670030541,0.0012,2130.6,2129.7,4.2123629]
[1770670030835,0.0012,2130.6,2129.7,3.281]
[1770670031240,0.0012,2130.6,2129.9,1.1649332]
[1770670032436,0.0012,2130.6,2129.8,1.17381913]
[1770670032828,0.0012,2130.6,2129.8,2.10518203]
[1770670033947,0.0012,2130.6,2130.0,0.9313629]
[1770670034134,0.98995446,2131.2,2130.2,0.9313629]
[1770670035350,4.27095446,2131.4,2130.3,1.17354363]
[1770670035727,4.27095446,2131.4,2130.4,0.9313629]
[1770670035922,15.18140163,2132.3,2130.4,0.9313629]
[1770670035923,0.98995446,2131.7,2130.4,0.9313629]
[1770670036124,0.98995446,2131.7,2130.5,1.1649332]
[1770670036932,0.98995446,2131.7,2130.6,0.9313629]
[1770670037828,0.98995446,2131.7,2130.7,1.17332332]
[1770670041254,0.9707593,2131.6,2130.7,1.17332332]
[1770670043338,0.9707593,2131.5,2130.7,1.17332332]
[1770670045354,0.9707593,2131.5,2130.6,4.69329328]
[1770670048340,0.9707593,2131.5,2130.8,0.0011]
[1770670048667,0.0012,2131.4,2130.8,0.0011]
[1770670049342,0.9719593,2131.4,2130.8,0.0011]
[1770670050570,0.35894973,2131.4,2130.8,0.0011]
[1770670051544,0.21090158,2131.4,2130.8,0.0011]
[1770670051873,0.9707593,2132.7,2131.3,0.92544628]
[1770670052042,0.9707593,2132.7,2131.5,0.98176316]
[1770670052438,0.9707593,2132.7,2131.5,0.92544628]
[1770670053041,0.9707593,2132.7,2131.6,0.92544628]
[1770670053743,2.14301872,2132.7,2131.7,1.1727729]
[1770670053943,2.14298424,2132.7,2131.7,1.1727729]
[1770670054169,0.9707593,2132.6,2131.7,1.1727729]
[1770670055770,0.9707593,2132.4,2131.6,4.69109161]
[1770670055967,4.74520889,2133.0,2131.6,4.69109161]
[1770670055968,0.9707593,2132.7,2131.6,5.61653789]
[1770670056273,0.9707593,2132.7,2131.7,0.92544628]
[1770670056970,4.68856518,2132.9,2131.7,0.92544628]
[1770670057144,5.71400538,2133.6,2132.4,0.92544628]
[1770670057145,0.9707593,2133.6,2132.4,0.92544628]
[1770670057774,1.17178345,2133.5,2132.5,2.09777922]
[1770670057977,0.9707593,2133.4,2132.5,1.17233294]
[1770670058181,4.6869131,2133.7,2132.6,0.92544628]
[1770670058359,0.9707593,2133.6,2132.5,1.17233294]
[1770670058554,0.9707593,2133.6,2132.6,0.92544628]
[1770670059076,1.17167361,2133.7,2132.6,0.92544628]
[1770670059372,1.21399711,2133.8,2132.6,0.92544628]
[1770670059747,2.14248783,2133.6,2132.4,4.68933177]
[1770670059948,0.9707593,2133.5,2132.4,4.68933177]
[1770670061269,0.0012,2133.1,2132.4,4.68933177]
[1770670061650,0.9719593,2133.1,2132.4,1.17238791]
[1770670062063,0.9719593,2133.1,2132.3,4.6896738]
[1770670062274,2.14397142,2133.1,2132.3,4.6896738]
[1770670065769,0.9719593,2133.1,2132.3,4.6896738]
[1770670065950,0.0012,2133.1,2132.3,4.6896738]
[1770670066576,0.0012,2133.1,2132.4,0.92544628]
[1770670068282,0.0012,2133.1,2132.5,1.17233294]
[1770670069376,0.99367159,2133.1,2132.5,1.17233294]
[1770670070274,1.17205813,2133.0,2132.3,4.68966115]
[1770670070466,0.99367159,2133.1,2132.3,4.68966115]
[1770670070677,0.0012,2133.1,2132.3,4.68966115]
[1770670072770,0.0012,2133.1,2132.3,5.59121294]
[1770670075567,0.0012,2133.1,2132.4,0.90155179]
[1770670076467,0.0012,2133.1,2132.5,1.17233294]
[1770670078293,0.0012,2133.1,2132.5,2.07388473]
[1770670078499,0.0012,2133.1,2132.3,5.59121294]
[1770670080295,0.0012,2133.1,2132.5,0.90155179]
[1770670080675,4.26947159,2133.7,2132.7,0.90155179]
[1770670080869,5.44114576,2133.7,2132.7,0.90155179]
[1770670081067,4.26947159,2133.7,2132.7,0.90155179]
[1770670081267,5.44114891,2133.7,2132.7,0.90155179]
[1770670081591,5.44114891,2133.7,2132.7,4.17755179]
[1770670082097,0.99247159,2133.6,2132.6,1.17227797]
[1770670082266,0.99247159,2133.6,2132.6,2.07382976]
[1770670082471,1.00979195,2133.5,2132.7,0.90155179]
[1770670082780,1.00979195,2133.4,2132.8,1.17216804]
[1770670082978,0.99247159,2133.6,2132.8,1.17216804]
[1770670083187,1.00979757,2133.5,2132.8,1.17216804]
[1770670083394,1.00979757,2133.4,2132.8,1.17216804]
[1770670083581,0.99247159,2133.6,2132.8,1.17216804]
[1770670083781,1.01000941,2133.5,2132.8,1.17216804]
[1770670084004,1.01000941,2133.4,2132.8,1.17216804]
[1770670084202,2.002481,2133.3,2132.2,4.41112209]
[1770670084378,1.17173067,2133.6,2132.7,1.17220861]
[1770670084379,2.002481,2133.2,2132.7,1.17220861]
[1770670084580,0.99247159,2133.4,2132.7,1.17220861]
[1770670084916,0.99247159,2133.4,2132.5,0.0011]
[1770670084917,0.0012,2133.2,2132.5,0.0011]
[1770670085080,3.277,2133.7,2132.5,0.0011]
[1770670085081,0.99247159,2134.2,2133.1,0.05631688]
[1770670085406,0.99247159,2134.2,2133.1,0.95786867]
[1770670086070,0.99247159,2134.2,2133.3,0.05631688]
[1770670086267,0.99247159,2134.2,2133.4,0.05631688]
[1770670087090,0.99247159,2134.2,2133.5,1.17178345]
[1770670087502,0.99247159,2134.1,2133.4,1.17183749]
[1770670087672,0.99247159,2134.1,2133.2,1.17190096]
[1770670087868,0.99247159,2134.1,2133.2,1.17194709]
[1770670088415,0.99247159,2134.1,2132.9,1.17207282]
[1770670088579,0.99247159,2134.1,2133.0,1.17205266]
[1770670088905,0.99247159,2134.0,2133.1,1.17199535]
[1770670089092,0.99247159,2134.0,2132.7,4.68887426]
[1770670089093,1.1715638,2133.9,2132.7,4.68887426]
[1770670089285,0.99247159,2133.8,2132.7,4.68887426]